[Event "Late-Titled-Tuesday-Blitz-January-16-2024"]
[Site "Chess.com"]
[Date "2024.01.16"]
[Round "11"]
[White "TheMagician"]
[Black "ToddBryant"]
[Result "1-0"]
[WhiteElo "2176"]
[BlackElo "2288"]
[TimeControl "180+1"]
[EndTime "16:06:29 PST"]
[Termination "TheMagician won on time"]

1. e4 {[%clk 0:02:59.8]} 1... c5 {[%clk 0:02:59.6]} 2. Nf3 {[%clk 0:02:59]} 2...
d6 {[%clk 0:02:59.5]} 3. Nc3 {[%clk 0:02:58.6]} 3... Nc6 {[%clk 0:02:59.2]} 4.
Bb5 {[%clk 0:02:57.5]} 4... Bd7 {[%clk 0:02:58.1]} 5. d4 {[%clk 0:02:57.4]} 5...
cxd4 {[%clk 0:02:57.8]} 6. Nxd4 {[%clk 0:02:57.6]} 6... Nf6 {[%clk 0:02:56.9]}
7. O-O {[%clk 0:02:56.5]} 7... g6 {[%clk 0:02:57.2]} 8. Bxc6 {[%clk 0:02:53.1]}
8... bxc6 {[%clk 0:02:57.2]} 9. f3 {[%clk 0:02:52.9]} 9... Bg7 {[%clk
0:02:52.7]} 10. Be3 {[%clk 0:02:52.1]} 10... O-O {[%clk 0:02:53.3]} 11. Qd2
{[%clk 0:02:51.9]} 11... Rb8 {[%clk 0:02:53.7]} 12. b3 {[%clk 0:02:51.5]} 12...
c5 {[%clk 0:02:46.2]} 13. Nde2 {[%clk 0:02:51.4]} 13... Qa5 {[%clk 0:02:13.2]}
14. Rad1 {[%clk 0:02:47.6]} 14... Rfe8 {[%clk 0:02:00.8]} 15. Bh6 {[%clk
0:02:40.5]} 15... Bh8 {[%clk 0:02:00.4]} 16. Qd3 {[%clk 0:02:32.2]} 16... Bc8
{[%clk 0:01:43.3]} 17. Rfe1 {[%clk 0:02:10.7]} 17... Ba6 {[%clk 0:01:39.3]} 18.
Qd2 {[%clk 0:02:10.8]} 18... Nd7 {[%clk 0:01:31]} 19. Nd5 {[%clk 0:01:50.4]}
19... Qxa2 {[%clk 0:01:08.8]} 20. Nc7 {[%clk 0:01:41.1]} 20... Rec8 {[%clk
0:01:03.6]} 21. Nd5 {[%clk 0:01:17.7]} 21... Re8 {[%clk 0:00:53.9]} 22. Nc7
{[%clk 0:01:17.1]} 22... Bxe2 {[%clk 0:00:37.3]} 23. Qxe2 {[%clk 0:01:07.9]}
23... Red8 {[%clk 0:00:30.3]} 24. Nd5 {[%clk 0:00:58.1]} 24... Re8 {[%clk
0:00:27.1]} 25. Nc7 {[%clk 0:00:55.7]} 25... Qa5 {[%clk 0:00:19.3]} 26. Nxe8
{[%clk 0:00:54.8]} 26... Rxe8 {[%clk 0:00:20.2]} 27. Bd2 {[%clk 0:00:50.8]}
27... Qb6 {[%clk 0:00:19.5]} 28. Be3 {[%clk 0:00:50.5]} 28... Qb4 {[%clk
0:00:19.2]} 29. Kh1 {[%clk 0:00:48.9]} 29... Bc3 {[%clk 0:00:18.8]} 30. Rf1
{[%clk 0:00:48.5]} 30... Ne5 {[%clk 0:00:17.2]} 31. Bd2 {[%clk 0:00:48.1]} 31...
Nc6 {[%clk 0:00:16.2]} 32. Bxc3 {[%clk 0:00:48.2]} 32... Qxc3 {[%clk 0:00:17.1]}
33. Qb5 {[%clk 0:00:46.4]} 33... Rc8 {[%clk 0:00:13.6]} 34. Qb7 {[%clk
0:00:46.5]} 34... Rf8 {[%clk 0:00:03.5]} 35. Qxc6 {[%clk 0:00:46.2]} 35... Qe5
{[%clk 0:00:04.4]} 36. f4 {[%clk 0:00:43.5]} 36... Qh5 {[%clk 0:00:04.5]} 37.
Qd7 {[%clk 0:00:41.6]} 37... Kg7 {[%clk 0:00:02.8]} 38. Qxe7 {[%clk 0:00:41.5]}
38... Qh6 {[%clk 0:00:02.6]} 39. Qxd6 {[%clk 0:00:40.4]} 39... Re8 {[%clk
0:00:02.7]} 40. f5 {[%clk 0:00:40.3]} 40... Kg8 {[%clk 0:00:02.5]} 41. Qd7
{[%clk 0:00:38.8]} 1-0

[Event "Late-Titled-Tuesday-Blitz-January-16-2024"]
[Site "Chess.com"]
[Date "2024.01.16"]
[Round "11"]
[White "PawnEatingZombie"]
[Black "dianamirza"]
[Result "0-1"]
[WhiteElo "2135"]
[BlackElo "2010"]
[TimeControl "180+1"]
[EndTime "16:06:35 PST"]
[Termination "dianamirza won on time"]

1. e4 {[%clk 0:03:00.9]} 1... d5 {[%clk 0:02:57.5]} 2. exd5 {[%clk 0:03:00.6]}
2... Qxd5 {[%clk 0:02:58.4]} 3. Nc3 {[%clk 0:03:00]} 3... Qd8 {[%clk 0:02:59.3]}
4. Nf3 {[%clk 0:02:53.5]} 4... Nf6 {[%clk 0:02:59.4]} 5. d4 {[%clk 0:02:51.7]}
5... g6 {[%clk 0:02:58.9]} 6. Bc4 {[%clk 0:02:47.9]} 6... Bg7 {[%clk 0:02:59.8]}
7. h3 {[%clk 0:02:47.5]} 7... O-O {[%clk 0:02:59.9]} 8. O-O {[%clk 0:02:48]}
8... a6 {[%clk 0:03:00.8]} 9. Re1 {[%clk 0:02:45.8]} 9... b5 {[%clk 0:03:00.5]}
10. Bb3 {[%clk 0:02:45.4]} 10... Bb7 {[%clk 0:03:00.9]} 11. Ne5 {[%clk
0:02:37.2]} 11... Nbd7 {[%clk 0:02:59.6]} 12. Bf4 {[%clk 0:02:29.5]} 12... c5
{[%clk 0:02:50.3]} 13. dxc5 {[%clk 0:02:16.7]} 13... Nxc5 {[%clk 0:02:49]} 14.
Qe2 {[%clk 0:02:03.2]} 14... Nxb3 {[%clk 0:02:42.7]} 15. axb3 {[%clk 0:02:01.6]}
15... Nd5 {[%clk 0:02:41.1]} 16. Bg3 {[%clk 0:01:53.9]} 16... Nxc3 {[%clk
0:02:29.3]} 17. bxc3 {[%clk 0:01:53.7]} 17... Qd5 {[%clk 0:02:29.4]} 18. f3
{[%clk 0:01:46.9]} 18... Rac8 {[%clk 0:02:26.4]} 19. Rad1 {[%clk 0:01:26.9]}
19... Qc5+ {[%clk 0:02:20.9]} 20. Kh2 {[%clk 0:01:27.4]} 20... Qxc3 {[%clk
0:02:20.2]} 21. Rd2 {[%clk 0:01:03]} 21... Rfd8 {[%clk 0:02:09.1]} 22. Red1
{[%clk 0:01:01.7]} 22... Rxd2 {[%clk 0:02:07.8]} 23. Rxd2 {[%clk 0:01:02.6]}
23... b4 {[%clk 0:01:58.8]} 24. Nd3 {[%clk 0:00:53.2]} 24... e6 {[%clk
0:01:53.3]} 25. Kh1 {[%clk 0:00:50.2]} 25... a5 {[%clk 0:01:46.7]} 26. Be1
{[%clk 0:00:48.6]} 26... Qa1 {[%clk 0:01:40.2]} 27. Kh2 {[%clk 0:00:46.6]} 27...
Qf6 {[%clk 0:01:28.5]} 28. Bf2 {[%clk 0:00:46.4]} 28... Qf5 {[%clk 0:01:24.8]}
29. Qe3 {[%clk 0:00:14.5]} 29... Bc3 {[%clk 0:01:15.8]} 30. Re2 {[%clk
0:00:13.9]} 30... Bg7 {[%clk 0:01:12.1]} 31. Nc5 {[%clk 0:00:13.6]} 31... Bd5
{[%clk 0:00:58.6]} 32. g4 {[%clk 0:00:13.9]} 32... Qf6 {[%clk 0:00:55.6]} 33.
Nd7 {[%clk 0:00:13.2]} 33... Qe7 {[%clk 0:00:55]} 34. Ne5 {[%clk 0:00:11.8]}
34... Qc7 {[%clk 0:00:53.4]} 35. Bg3 {[%clk 0:00:11]} 35... Qc3 {[%clk
0:00:51.6]} 36. Qxc3 {[%clk 0:00:10.1]} 36... Rxc3 {[%clk 0:00:52.5]} 37. Nd3
{[%clk 0:00:07]} 37... Bxf3 {[%clk 0:00:51.8]} 38. Rf2 {[%clk 0:00:05.5]} 38...
Bd1 {[%clk 0:00:51.1]} 39. Be5 {[%clk 0:00:03.7]} 39... Rxc2 {[%clk 0:00:50.4]}
40. Rxc2 {[%clk 0:00:02.1]} 40... Bxc2 {[%clk 0:00:51.3]} 41. Bxg7 {[%clk
0:00:02.4]} 41... Kxg7 {[%clk 0:00:50.6]} 42. Nc5 {[%clk 0:00:02.3]} 42... Kf6
{[%clk 0:00:49.2]} 43. Kg2 {[%clk 0:00:02.6]} 43... Ke5 {[%clk 0:00:49.1]} 44.
Kf3 {[%clk 0:00:03.4]} 44... Kd4 {[%clk 0:00:49.3]} 45. Nb7 {[%clk 0:00:02.7]}
45... Bxb3 {[%clk 0:00:48.2]} 46. Nxa5 {[%clk 0:00:03.2]} 46... Bd5+ {[%clk
0:00:48.3]} 47. Ke2 {[%clk 0:00:03.1]} 47... b3 {[%clk 0:00:49.2]} 48. Kd2
{[%clk 0:00:02.1]} 48... g5 {[%clk 0:00:45.7]} 49. Kc1 {[%clk 0:00:01.1]} 49...
Kc3 {[%clk 0:00:45.6]} 50. Kb1 {[%clk 0:00:01.1]} 50... Bg2 {[%clk 0:00:45.6]}
0-1

[Event "Late-Titled-Tuesday-Blitz-January-16-2024"]
[Site "Chess.com"]
[Date "2024.01.16"]
[Round "11"]
[White "Brahianzevich"]
[Black "imdarealist"]
[Result "1-0"]
[WhiteElo "2426"]
[BlackElo "2294"]
[TimeControl "180+1"]
[EndTime "16:06:39 PST"]
[Termination "Brahianzevich won on time"]

1. e4 {[%clk 0:02:53.9]} 1... e5 {[%clk 0:02:57.7]} 2. Nf3 {[%clk 0:02:54.1]}
2... Nf6 {[%clk 0:02:58.1]} 3. Nxe5 {[%clk 0:02:47.8]} 3... d6 {[%clk
0:02:57.7]} 4. Nf3 {[%clk 0:02:47.7]} 4... Nxe4 {[%clk 0:02:58.1]} 5. d4 {[%clk
0:02:48.6]} 5... d5 {[%clk 0:02:57.9]} 6. Bd3 {[%clk 0:02:49.5]} 6... Nd6 {[%clk
0:02:57.8]} 7. O-O {[%clk 0:02:47.8]} 7... Be7 {[%clk 0:02:57.9]} 8. h3 {[%clk
0:02:47.6]} 8... O-O {[%clk 0:02:57.8]} 9. Bf4 {[%clk 0:02:45.6]} 9... Nd7
{[%clk 0:02:55.5]} 10. Re1 {[%clk 0:02:45.6]} 10... Re8 {[%clk 0:02:52.1]} 11.
c3 {[%clk 0:02:44.1]} 11... Nf8 {[%clk 0:02:51.7]} 12. Nbd2 {[%clk 0:02:42.4]}
12... Ne6 {[%clk 0:02:51.8]} 13. Bg3 {[%clk 0:02:38.6]} 13... g6 {[%clk
0:02:51.8]} 14. Qc2 {[%clk 0:02:28]} 14... Ng7 {[%clk 0:02:51.4]} 15. Ne5 {[%clk
0:02:13.8]} 15... Bf5 {[%clk 0:02:47.7]} 16. Ng4 {[%clk 0:02:09.2]} 16... Bxd3
{[%clk 0:02:42.5]} 17. Qxd3 {[%clk 0:02:10.1]} 17... Ngf5 {[%clk 0:02:37]} 18.
Qf3 {[%clk 0:02:06.9]} 18... Nxg3 {[%clk 0:02:31.6]} 19. fxg3 {[%clk 0:02:04.5]}
19... c6 {[%clk 0:02:28.7]} 20. Rf1 {[%clk 0:02:04.1]} 20... Rf8 {[%clk
0:02:21.1]} 21. h4 {[%clk 0:01:57.1]} 21... f5 {[%clk 0:02:14.8]} 22. Ne5 {[%clk
0:01:55.6]} 22... Ne4 {[%clk 0:02:10.8]} 23. Nxe4 {[%clk 0:01:52.2]} 23... dxe4
{[%clk 0:01:53]} 24. Qe3 {[%clk 0:01:44.8]} 24... Bf6 {[%clk 0:01:49.1]} 25. Nc4
{[%clk 0:01:40.5]} 25... Kg7 {[%clk 0:01:42.2]} 26. Rad1 {[%clk 0:01:30.7]}
26... Qd5 {[%clk 0:01:38.5]} 27. b3 {[%clk 0:01:30.9]} 27... Rae8 {[%clk
0:01:28.3]} 28. Qf4 {[%clk 0:01:29.5]} 28... Rd8 {[%clk 0:01:22.6]} 29. h5
{[%clk 0:01:25.5]} 29... Kg8 {[%clk 0:01:12.7]} 30. hxg6 {[%clk 0:01:25.5]}
30... hxg6 {[%clk 0:01:12.5]} 31. Ne3 {[%clk 0:01:13.3]} 31... Qf7 {[%clk
0:01:09.5]} 32. g4 {[%clk 0:01:13.4]} 32... fxg4 {[%clk 0:00:43.7]} 33. Qxg4
{[%clk 0:01:14.3]} 33... Qg7 {[%clk 0:00:33.8]} 34. Qxe4 {[%clk 0:01:00.5]}
34... Rde8 {[%clk 0:00:33.5]} 35. Qd3 {[%clk 0:00:56.5]} 35... Bg5 {[%clk
0:00:13]} 36. Ng4 {[%clk 0:00:54.2]} 36... Rxf1+ {[%clk 0:00:09]} 37. Rxf1
{[%clk 0:00:54.2]} 37... Re6 {[%clk 0:00:09.7]} 38. Ne5 {[%clk 0:00:52.8]} 38...
Bf6 {[%clk 0:00:04.7]} 39. Qc4 {[%clk 0:00:45.3]} 39... Qe7 {[%clk 0:00:02.1]}
40. Nd7 {[%clk 0:00:35.8]} 40... Qxd7 {[%clk 0:00:02.2]} 41. Rxf6 {[%clk
0:00:35.8]} 1-0

[Event "Late-Titled-Tuesday-Blitz-January-16-2024"]
[Site "Chess.com"]
[Date "2024.01.16"]
[Round "11"]
[White "finec2"]
[Black "dorpato"]
[Result "1-0"]
[WhiteElo "2249"]
[BlackElo "2120"]
[TimeControl "180+1"]
[EndTime "16:06:42 PST"]
[Termination "finec2 won by resignation"]

1. e4 {[%clk 0:03:00.9]} 1... c5 {[%clk 0:02:56.9]} 2. Nf3 {[%clk 0:03:00.2]}
2... d6 {[%clk 0:02:56.3]} 3. d4 {[%clk 0:03:00.2]} 3... cxd4 {[%clk 0:02:57.2]}
4. Qxd4 {[%clk 0:02:59.8]} 4... Nc6 {[%clk 0:02:56.3]} 5. Bb5 {[%clk 0:02:58.7]}
5... Bd7 {[%clk 0:02:54]} 6. Bxc6 {[%clk 0:02:58.7]} 6... Bxc6 {[%clk
0:02:53.3]} 7. Nc3 {[%clk 0:02:58.6]} 7... Nf6 {[%clk 0:02:52.1]} 8. Bg5 {[%clk
0:02:59]} 8... e5 {[%clk 0:02:44.8]} 9. Qd3 {[%clk 0:02:57.9]} 9... Be7 {[%clk
0:02:44]} 10. O-O {[%clk 0:02:51.3]} 10... O-O {[%clk 0:02:37.1]} 11. Rad1
{[%clk 0:02:49.6]} 11... Ne8 {[%clk 0:02:35.8]} 12. Bxe7 {[%clk 0:02:44]} 12...
Qxe7 {[%clk 0:02:36.7]} 13. Nd5 {[%clk 0:02:41.2]} 13... Bxd5 {[%clk 0:02:28.5]}
14. Qxd5 {[%clk 0:02:42.1]} 14... Rd8 {[%clk 0:02:26]} 15. c4 {[%clk 0:02:24.3]}
15... Nf6 {[%clk 0:02:18.2]} 16. Qd3 {[%clk 0:02:24]} 16... Rd7 {[%clk
0:02:14.5]} 17. b3 {[%clk 0:02:17.1]} 17... Rfd8 {[%clk 0:02:10.9]} 18. Rfe1
{[%clk 0:02:09]} 18... h6 {[%clk 0:02:07.3]} 19. Nh4 {[%clk 0:02:06.7]} 19...
Nh5 {[%clk 0:02:00.1]} 20. Nf5 {[%clk 0:01:56.8]} 20... Qf6 {[%clk 0:01:46.1]}
21. Qf3 {[%clk 0:01:48.8]} 21... Nf4 {[%clk 0:01:40.2]} 22. g3 {[%clk
0:01:42.9]} 22... Ne6 {[%clk 0:01:36.6]} 23. h4 {[%clk 0:01:41.4]} 23... Kh7
{[%clk 0:01:26.7]} 24. Qg4 {[%clk 0:01:38.3]} 24... g6 {[%clk 0:01:11.9]} 25.
Ne3 {[%clk 0:01:37.4]} 25... Nd4 {[%clk 0:01:10.7]} 26. Rxd4 {[%clk 0:00:55.1]}
26... exd4 {[%clk 0:01:08.8]} 27. Nd5 {[%clk 0:00:55]} 27... Qg7 {[%clk
0:01:05.3]} 28. f4 {[%clk 0:00:52.9]} 28... b6 {[%clk 0:00:57.5]} 29. Kh2 {[%clk
0:00:46]} 29... Kh8 {[%clk 0:00:45.6]} 30. Rd1 {[%clk 0:00:44]} 30... Rb7 {[%clk
0:00:39.5]} 31. Rd2 {[%clk 0:00:43.5]} 31... Re8 {[%clk 0:00:38.2]} 32. Qf3
{[%clk 0:00:38.6]} 32... b5 {[%clk 0:00:35.5]} 33. f5 {[%clk 0:00:33.6]} 33...
bxc4 {[%clk 0:00:27.3]} 34. bxc4 {[%clk 0:00:32.3]} 34... gxf5 {[%clk
0:00:24.9]} 35. exf5 {[%clk 0:00:31.7]} 35... Re3 {[%clk 0:00:21.5]} 36. Nxe3
{[%clk 0:00:27.9]} 36... dxe3 {[%clk 0:00:20.8]} 37. Qxe3 {[%clk 0:00:28.6]}
37... Qf6 {[%clk 0:00:20.3]} 38. Qf4 {[%clk 0:00:25.4]} 38... Rb2 {[%clk
0:00:19.1]} 39. Rxb2 {[%clk 0:00:22.2]} 39... Qxb2+ {[%clk 0:00:19.4]} 40. Kh3
{[%clk 0:00:22.8]} 40... Kg7 {[%clk 0:00:18.1]} 41. Qg4+ {[%clk 0:00:21.2]}
41... Kh7 {[%clk 0:00:17.5]} 42. Qf4 {[%clk 0:00:20.4]} 42... Qxa2 {[%clk
0:00:16.7]} 43. f6 {[%clk 0:00:18]} 43... Qxc4 {[%clk 0:00:16.7]} 44. Qxc4
{[%clk 0:00:17.6]} 1-0

[Event "Late-Titled-Tuesday-Blitz-January-16-2024"]
[Site "Chess.com"]
[Date "2024.01.16"]
[Round "11"]
[White "NMJeevanK"]
[Black "Cambek64"]
[Result "1-0"]
[WhiteElo "2588"]
[BlackElo "2470"]
[TimeControl "180+1"]
[EndTime "16:06:47 PST"]
[Termination "NMJeevanK won on time"]

1. e4 {[%clk 0:03:00.9]} 1... e6 {[%clk 0:02:13.3]} 2. d4 {[%clk 0:02:57.7]}
2... d5 {[%clk 0:02:13.9]} 3. e5 {[%clk 0:02:58.4]} 3... c5 {[%clk 0:02:14]} 4.
c3 {[%clk 0:02:59]} 4... Nc6 {[%clk 0:02:14.2]} 5. Nf3 {[%clk 0:02:59.4]} 5...
Bd7 {[%clk 0:02:12.8]} 6. Bd3 {[%clk 0:02:58.7]} 6... cxd4 {[%clk 0:02:12.9]} 7.
cxd4 {[%clk 0:02:59.4]} 7... Nb4 {[%clk 0:02:12.1]} 8. O-O {[%clk 0:02:57.4]}
8... Nxd3 {[%clk 0:02:11.5]} 9. Qxd3 {[%clk 0:02:58.3]} 9... Ne7 {[%clk
0:02:09.7]} 10. Nc3 {[%clk 0:02:52.9]} 10... Nf5 {[%clk 0:02:06.1]} 11. Bg5
{[%clk 0:02:46.8]} 11... Be7 {[%clk 0:02:06.1]} 12. Bxe7 {[%clk 0:02:46.1]}
12... Qxe7 {[%clk 0:02:06]} 13. Rac1 {[%clk 0:02:39]} 13... O-O {[%clk
0:02:04.9]} 14. Nd2 {[%clk 0:02:31.8]} 14... Qb4 {[%clk 0:01:57.5]} 15. Nb3
{[%clk 0:02:29.4]} 15... b6 {[%clk 0:01:55.6]} 16. Rfd1 {[%clk 0:02:23.8]} 16...
a5 {[%clk 0:01:50]} 17. Na1 {[%clk 0:02:00.8]} 17... Rfc8 {[%clk 0:01:46.7]} 18.
b3 {[%clk 0:01:54.6]} 18... g6 {[%clk 0:01:27.1]} 19. a4 {[%clk 0:01:45.8]}
19... h5 {[%clk 0:01:25.6]} 20. h3 {[%clk 0:01:39.6]} 20... h4 {[%clk
0:01:23.8]} 21. Ne2 {[%clk 0:01:38.1]} 21... b5 {[%clk 0:01:17.4]} 22. Nc2
{[%clk 0:01:32.9]} 22... Qe7 {[%clk 0:01:03.3]} 23. axb5 {[%clk 0:01:31.3]}
23... Rab8 {[%clk 0:01:02.4]} 24. Ne3 {[%clk 0:01:23.9]} 24... Nxe3 {[%clk
0:00:51.2]} 25. Qxe3 {[%clk 0:01:21]} 25... Rxb5 {[%clk 0:00:42.8]} 26. Rxc8+
{[%clk 0:01:18.2]} 26... Bxc8 {[%clk 0:00:42.6]} 27. Rc1 {[%clk 0:01:18.7]}
27... Qb7 {[%clk 0:00:42.4]} 28. Qg5 {[%clk 0:01:16.3]} 28... Qd7 {[%clk
0:00:31.5]} 29. Nf4 {[%clk 0:01:09.9]} 29... Kf8 {[%clk 0:00:13.7]} 30. Qxh4
{[%clk 0:01:05]} 30... Bb7 {[%clk 0:00:12.5]} 31. Qh8+ {[%clk 0:00:56.1]} 31...
Ke7 {[%clk 0:00:12.2]} 32. Qg7 {[%clk 0:00:54.4]} 32... Ke8 {[%clk 0:00:12.1]}
33. h4 {[%clk 0:00:51.3]} 33... Rb4 {[%clk 0:00:09]} 34. h5 {[%clk 0:00:49.3]}
34... Rxd4 {[%clk 0:00:09.5]} 35. h6 {[%clk 0:00:38.6]} 35... Rxf4 {[%clk
0:00:08.5]} 36. h7 {[%clk 0:00:36.7]} 36... Rh4 {[%clk 0:00:08.8]} 37. h8=Q+
{[%clk 0:00:36.3]} 37... Rxh8 {[%clk 0:00:09.4]} 38. Qxh8+ {[%clk 0:00:36.7]}
38... Ke7 {[%clk 0:00:09.9]} 39. Qf6+ {[%clk 0:00:36.5]} 39... Ke8 {[%clk
0:00:08.4]} 40. Rc3 {[%clk 0:00:36.3]} 40... Ba6 {[%clk 0:00:02.6]} 41. Rh3
{[%clk 0:00:31.8]} 41... Qe7 {[%clk 0:00:02.4]} 42. Rh8+ {[%clk 0:00:30]} 42...
Kd7 {[%clk 0:00:02.8]} 43. Qf4 {[%clk 0:00:28.7]} 1-0

[Event "Late-Titled-Tuesday-Blitz-January-16-2024"]
[Site "Chess.com"]
[Date "2024.01.16"]
[Round "11"]
[White "mishanick"]
[Black "Bigfish1995"]
[Result "1-0"]
[WhiteElo "3110"]
[BlackElo "3080"]
[TimeControl "180+1"]
[EndTime "16:06:50 PST"]
[Termination "mishanick won on time"]

1. d4 {[%clk 0:02:52.7]} 1... d5 {[%clk 0:02:57.3]} 2. c4 {[%clk 0:02:53]} 2...
c6 {[%clk 0:02:57.4]} 3. Nc3 {[%clk 0:02:53.5]} 3... Nf6 {[%clk 0:02:53.8]} 4.
Nf3 {[%clk 0:02:54.1]} 4... e6 {[%clk 0:02:53.4]} 5. Bg5 {[%clk 0:02:53.5]} 5...
Nbd7 {[%clk 0:02:51.2]} 6. e3 {[%clk 0:02:53]} 6... Qa5 {[%clk 0:02:51.7]} 7.
Nd2 {[%clk 0:02:52.7]} 7... dxc4 {[%clk 0:02:49.6]} 8. Bxf6 {[%clk 0:02:52.8]}
8... Nxf6 {[%clk 0:02:50.2]} 9. Nxc4 {[%clk 0:02:53.5]} 9... Qc7 {[%clk
0:02:49]} 10. g3 {[%clk 0:02:44.5]} 10... Bd6 {[%clk 0:02:38.3]} 11. Bg2 {[%clk
0:02:39.1]} 11... O-O {[%clk 0:02:37.4]} 12. O-O {[%clk 0:02:39.6]} 12... Rd8
{[%clk 0:02:35.1]} 13. f4 {[%clk 0:02:34.1]} 13... Nd5 {[%clk 0:02:31.2]} 14.
Rc1 {[%clk 0:02:30.2]} 14... Bf8 {[%clk 0:02:20.1]} 15. Qe2 {[%clk 0:02:15.5]}
15... c5 {[%clk 0:02:11.3]} 16. Ne5 {[%clk 0:01:59.5]} 16... Rb8 {[%clk
0:01:42.1]} 17. Nxd5 {[%clk 0:01:17.6]} 17... exd5 {[%clk 0:01:40.2]} 18. dxc5
{[%clk 0:01:18.1]} 18... f6 {[%clk 0:01:32]} 19. Nf3 {[%clk 0:01:15.6]} 19... a5
{[%clk 0:01:28]} 20. a3 {[%clk 0:01:07]} 20... b6 {[%clk 0:01:21.6]} 21. c6
{[%clk 0:01:02.9]} 21... Bg4 {[%clk 0:01:08.6]} 22. Qd2 {[%clk 0:01:01.8]} 22...
Bxf3 {[%clk 0:01:01.5]} 23. Bxf3 {[%clk 0:01:01.9]} 23... Bc5 {[%clk 0:00:53.6]}
24. b4 {[%clk 0:00:58.9]} 24... Bf8 {[%clk 0:00:49.6]} 25. Bxd5+ {[%clk
0:00:50.6]} 25... Kh8 {[%clk 0:00:50]} 26. Rfd1 {[%clk 0:00:50.2]} 26... Ra8
{[%clk 0:00:44.3]} 27. Qc3 {[%clk 0:00:42.4]} 27... axb4 {[%clk 0:00:42.1]} 28.
axb4 {[%clk 0:00:42.4]} 28... b5 {[%clk 0:00:42.8]} 29. Bf3 {[%clk 0:00:39.9]}
29... Bd6 {[%clk 0:00:23.8]} 30. Rd5 {[%clk 0:00:37]} 30... Rab8 {[%clk
0:00:23.7]} 31. Kg2 {[%clk 0:00:26.2]} 31... h6 {[%clk 0:00:21.4]} 32. Rc2
{[%clk 0:00:26.1]} 32... Rdc8 {[%clk 0:00:11.6]} 33. Qd4 {[%clk 0:00:25.5]}
33... Bf8 {[%clk 0:00:11.1]} 34. Rd7 {[%clk 0:00:23.6]} 34... Qb6 {[%clk
0:00:11.2]} 35. c7 {[%clk 0:00:21.7]} 35... Qe6 {[%clk 0:00:02.6]} 36. cxb8=Q
{[%clk 0:00:14.6]} 36... Rxc2+ {[%clk 0:00:02]} 37. Kg1 {[%clk 0:00:14.7]} 37...
Rc1+ {[%clk 0:00:02.2]} 38. Kf2 {[%clk 0:00:14.4]} 38... Rc2+ {[%clk 0:00:01.3]}
39. Be2 {[%clk 0:00:14.8]} 1-0

[Event "Late-Titled-Tuesday-Blitz-January-16-2024"]
[Site "Chess.com"]
[Date "2024.01.16"]
[Round "11"]
[White "Roedor"]
[Black "Aguiar94"]
[Result "0-1"]
[WhiteElo "2339"]
[BlackElo "2502"]
[TimeControl "180+1"]
[EndTime "16:06:50 PST"]
[Termination "Aguiar94 won on time"]

1. e4 {[%clk 0:02:59.2]} 1... c5 {[%clk 0:02:58.8]} 2. Nf3 {[%clk 0:02:59]} 2...
e6 {[%clk 0:02:56.7]} 3. d3 {[%clk 0:02:57.2]} 3... Nc6 {[%clk 0:02:56.3]} 4. g3
{[%clk 0:02:56.1]} 4... Nf6 {[%clk 0:02:55.1]} 5. Bg2 {[%clk 0:02:56.4]} 5... d5
{[%clk 0:02:55.4]} 6. Nbd2 {[%clk 0:02:56.3]} 6... g6 {[%clk 0:02:55.4]} 7. O-O
{[%clk 0:02:56.2]} 7... Bg7 {[%clk 0:02:55]} 8. Re1 {[%clk 0:02:56.2]} 8... O-O
{[%clk 0:02:55.4]} 9. c3 {[%clk 0:02:56.1]} 9... a5 {[%clk 0:02:54.5]} 10. a4
{[%clk 0:02:54.9]} 10... b6 {[%clk 0:02:53.5]} 11. e5 {[%clk 0:02:47.9]} 11...
Ng4 {[%clk 0:02:52.3]} 12. d4 {[%clk 0:02:47.1]} 12... cxd4 {[%clk 0:02:52.9]}
13. cxd4 {[%clk 0:02:48]} 13... f6 {[%clk 0:02:53.4]} 14. h3 {[%clk 0:02:38.5]}
14... Nxf2 {[%clk 0:02:52]} 15. Kxf2 {[%clk 0:02:38.2]} 15... fxe5 {[%clk
0:02:52.6]} 16. dxe5 {[%clk 0:02:37]} 16... Nxe5 {[%clk 0:02:51.9]} 17. Kg1
{[%clk 0:02:36.8]} 17... Nd3 {[%clk 0:02:49.2]} 18. Re3 {[%clk 0:02:33]} 18...
Nb4 {[%clk 0:02:20.5]} 19. Raa3 {[%clk 0:02:22.4]} 19... Qd6 {[%clk 0:02:17.7]}
20. Ne4 {[%clk 0:02:08.9]} 20... Qc7 {[%clk 0:02:12.5]} 21. Rac3 {[%clk
0:02:00.3]} 21... Qb8 {[%clk 0:01:57.5]} 22. Neg5 {[%clk 0:01:47.7]} 22... Qxg3
{[%clk 0:01:55.1]} 23. Nxe6 {[%clk 0:01:34.9]} 23... Bxe6 {[%clk 0:01:49.1]} 24.
Rxe6 {[%clk 0:01:35.8]} 24... d4 {[%clk 0:01:44.6]} 25. Rb3 {[%clk 0:01:21.7]}
25... d3 {[%clk 0:01:29.9]} 26. Re7 {[%clk 0:01:15.4]} 26... Rae8 {[%clk
0:01:12.6]} 27. Re3 {[%clk 0:00:50.6]} 27... Bd4 {[%clk 0:00:59.6]} 28. Nxd4
{[%clk 0:00:42.8]} 28... Rxe3 {[%clk 0:01:00.1]} 29. Bd2 {[%clk 0:00:32.6]}
29... Rf2 {[%clk 0:00:38.6]} 30. Qf1 {[%clk 0:00:19.6]} 30... Ree2 {[%clk
0:00:22.4]} 31. Nxe2 {[%clk 0:00:14]} 31... Rxf1+ {[%clk 0:00:22]} 32. Kxf1
{[%clk 0:00:08.1]} 32... dxe2+ {[%clk 0:00:22.9]} 33. Kxe2 {[%clk 0:00:03.1]}
33... Qxg2+ {[%clk 0:00:13.1]} 34. Kd1 {[%clk 0:00:01.4]} 34... Qf1+ {[%clk
0:00:09.7]} 0-1